bitfinex-derivatives/quotes_ETHF0:USTF0_20241229
["timestamp","ask_amount","ask_price","bid_price","bid_amount"]
[1735450255912,0.29536,3391.6,3391.5,1.3415519]
[1735450258808,0.29536,3391.6,3391.5,1.0461919]
[1735450259216,0.29537,3391.5,3391.4,1.20767]
[1735450262421,0.29537,3391.5,3391.4,0.29537]
[1735450262919,0.29537,3391.5,3391.4,0.74617]
[1735450263320,0.29537,3391.5,3391.4,1.19147]
[1735450271712,0.29537,3391.5,3391.4,0.8961]
[1735450271918,7.85551177,3391.7,3391.2,4.63640439]
[1735450272221,0.29538,3391.3,3391.2,4.63640439]
[1735450272518,3.50318,3391.3,3391.2,4.63640439]
[1735450272719,0.29539,3391.2,3391.1,4.63640439]
[1735450274017,0.2954,3391.1,3391.0,0.9304]
[1735450275018,4.94298066,3391.1,3391.0,0.9304]
[1735450275521,4.64758066,3391.1,3390.7,4.63640439]
[1735450275721,0.29543,3390.8,3390.7,5.08350439]
[1735450276422,0.29543,3390.8,3390.7,0.4471]
[1735450279125,5.69377256,3390.9,3390.5,0.4284]
[1735450279324,0.29544,3390.6,3390.5,0.4284]
[1735450280625,0.4275,3390.8,3390.4,3.2078]
[1735450280626,1.0461919,3390.7,3390.4,3.2078]
[1735450280921,0.29547,3390.3,3390.2,4.63640439]
[1735450281126,1.3416619,3390.3,3390.2,4.63640439]
[1735450282331,0.2955,3390.0,3389.9,0.4215]
[1735450283128,0.29551,3389.8,3389.7,0.4283]
[1735450283329,0.29551,3389.8,3389.7,0.8668]
[1735450285732,0.29551,3389.8,3389.7,0.4385]
[1735450290127,0.29554,3389.5,3389.4,3.2078]
[1735450291033,0.29555,3389.4,3389.3,0.29555]
[1735450291236,0.29555,3389.4,3389.3,3.50335]
[1735450292131,0.29555,3389.4,3389.3,3.2078]
[1735450296041,0.29555,3389.4,3389.3,4.2539919]
[1735450297138,0.29555,3389.4,3389.3,1.0461919]
[1735450304145,1.0461919,3389.4,3388.2,7.8293178]
[1735450304440,1.3417919,3388.8,3388.7,0.421]
[1735450306442,0.2956,3388.8,3388.7,0.421]
[1735450316455,0.29561,3388.7,3388.6,0.4305]
[1735450316657,0.73121,3388.7,3388.6,0.4305]
[1735450321157,0.29562,3388.6,3388.5,0.46]
[1735450325668,3.2078,3388.9,3388.5,0.46]
[1735450325967,0.29561,3388.7,3388.6,0.29562]
[1735450327368,0.29562,3388.6,3388.5,0.75562]
[1735450327865,0.29562,3388.6,3388.5,0.46]
[1735450328467,1.7852019,3388.8,3388.1,0.29566]
[1735450328675,0.29565,3388.3,3388.2,0.74515]
[1735450332673,0.29565,3388.3,3388.2,0.4495]
[1735450353487,0.75475,3388.3,3388.2,0.4495]
[1735450360096,5.37915712,3388.3,3388.2,0.4495]
[1735450361500,0.75475,3388.3,3388.2,0.4495]
[1735450361701,0.29566,3388.1,3388.0,4.6215178]
[1735450361898,1.3418519,3388.1,3388.0,4.6215178]
[1735450362799,1.3418519,3388.1,3387.9,5.3622978]
[1735450362800,0.29567,3388.0,3387.9,5.3622978]
[1735450365397,5.51290712,3388.2,3387.9,6.1128097]
[1735450365398,4.62440712,3388.2,3387.9,6.1128097]
[1735450365702,4.62440712,3388.2,3388.1,1.3418519]
[1735450367105,4.92001712,3388.7,3388.6,0.29562]
[1735450369708,5.67059902,3388.7,3388.5,0.8877]
[1735450369905,0.29562,3388.6,3388.5,1.18332]
[1735450372710,6.43280902,3388.7,3388.6,0.29562]
[1735450372907,5.96620902,3388.7,3388.6,0.29562]
[1735450379926,0.29562,3388.6,3388.5,1.18332]
[1735450382127,4.62440712,3388.7,3388.6,0.29562]
[1735450382925,6.0761089,3388.9,3388.8,0.2956]
[1735450382926,4.92000712,3388.9,3388.8,0.2956]
[1735450384227,0.2956,3388.9,3388.8,0.2956]
[1735450384428,7.83220712,3389.0,3388.6,1.0461919]
[1735450384628,7.83220712,3389.0,3388.5,5.53455225]
[1735450384629,7.83220712,3389.0,3388.9,0.29559]
[1735450385627,3.2078,3389.0,3388.9,0.29559]
[1735450386428,3.50338,3389.0,3388.9,0.29559]
[1735450388231,0.29558,3389.0,3388.9,0.29559]
[1735450390133,3.50337,3389.2,3389.1,0.29557]
[1735450390533,3.2078,3389.2,3389.1,0.29557]
[1735450391225,3.2078,3389.2,3389.1,0.75627]
[1735450393130,0.29555,3389.4,3389.3,0.29556]
[1735450393330,8.57326461,3389.5,3389.2,0.4336]
[1735450393533,8.86880461,3389.5,3389.4,0.29555]
[1735450394229,3.2078,3389.5,3389.4,0.29555]
[1735450394536,4.62440712,3389.7,3389.6,0.29553]
[1735450396139,4.5494919,3390.0,3389.9,0.29551]
[1735450397745,0.29551,3389.9,3389.8,0.29551]
[1735450397935,1.3417019,3389.9,3389.8,0.29551]
[1735450398636,1.0461919,3389.9,3389.3,0.4637]
[1735450398844,0.29554,3389.6,3389.5,0.29554]
[1735450399342,0.29555,3389.5,3389.3,1.19355]
[1735450399547,1.3417419,3389.4,3389.3,1.19355]
[1735450399846,0.29555,3389.4,3389.3,1.19355]
[1735450401348,0.29555,3389.5,3389.4,0.29554]
[1735450401639,1.9657919,3389.6,3389.3,0.898]
[1735450401844,2.2613319,3389.6,3389.5,0.29554]
[1735450402035,1.21514,3389.6,3389.5,0.29554]
[1735450403946,0.9196,3389.6,3389.5,0.29554]
[1735450406046,3.2078,3390.0,3389.5,1.0461919]
[1735450406349,3.2078,3390.0,3389.9,0.29551]
[1735450409238,3.2078,3390.0,3389.9,1.3417019]
[1735450412250,0.29548,3390.2,3390.1,0.29549]
[1735450415857,1.0461919,3390.4,3389.8,1.3645]
[1735450416051,0.29548,3390.2,3390.1,0.29548]
[1735450416653,1.0461919,3390.4,3390.2,0.29547]
[1735450416654,0.29547,3390.3,3390.2,0.29547]
[1735450417653,0.9318,3390.5,3390.3,0.29546]
[1735450418055,0.9318,3390.5,3389.9,1.0461919]
[1735450418452,0.29547,3390.4,3389.9,1.0461919]
[1735450418654,0.29547,3390.4,3390.2,0.29547]
[1735450419350,0.9318,3390.5,3390.2,0.29547]
[1735450419553,0.29547,3390.3,3390.2,0.29547]
[1735450422258,0.29549,3390.1,3390.0,0.29549]
[1735450437764,1.18329,3390.1,3390.0,0.29549]
[1735450437966,4.39109,3390.1,3390.0,0.29549]
[1735450440966,1.18329,3390.1,3390.0,0.29549]
[1735450441265,4.39109,3390.1,3390.0,0.29549]
[1735450441574,4.0956,3390.1,3390.0,0.29549]
[1735450445665,3.2078,3390.1,3390.0,1.7847819]
[1735450445869,3.2078,3390.1,3390.0,2.2054819]
[1735450447875,3.2078,3390.1,3390.0,6.85233415]
[1735450448578,0.4286,3390.4,3390.0,9.76464415]
[1735450448777,0.4286,3390.4,3390.3,0.29547]
[1735450449180,5.05300712,3390.4,3390.3,0.29547]
[1735450450278,4.62440712,3390.4,3390.3,0.29547]
[1735450451681,4.62440712,3390.5,3390.4,0.29546]
[1735450453780,4.91985712,3390.5,3390.4,0.29546]
[1735450454079,5.36585712,3390.5,3390.4,0.29546]
[1735450455580,0.74145,3390.5,3390.4,0.29546]
[1735450456173,0.446,3390.5,3390.2,4.64685225]
[1735450456484,0.29547,3390.3,3390.2,4.94232225]
[1735450457282,0.29547,3390.3,3390.2,4.64685225]
[1735450457479,0.29547,3390.3,3390.2,4.94233225]
[1735450457985,0.29547,3390.3,3390.2,4.64685225]
[1735450458587,4.65048034,3390.3,3390.1,7.85465225]
[1735450458782,0.29548,3390.2,3390.1,8.15013225]
[1735450463690,4.94596034,3390.2,3390.1,3.50328]
[1735450463890,4.65048034,3390.2,3390.1,3.50328]
[1735450464295,4.94596034,3390.2,3390.1,3.50328]
[1735450465092,4.65048034,3390.2,3390.1,3.50328]
[1735450465491,4.94595034,3390.3,3390.2,0.29548]
[1735450466190,4.65048034,3390.3,3390.2,0.29548]
[1735450467992,5.07658034,3390.4,3390.3,0.29547]
[1735450468589,4.65048034,3390.4,3390.3,0.74517]
[1735450471194,4.65048034,3390.4,3390.3,1.7913619]
[1735450472099,4.65048034,3390.7,3390.6,0.29544]
[1735450472695,4.65048034,3390.7,3390.6,0.75474]
[1735450473193,4.65048034,3390.8,3390.7,0.29544]
[1735450473601,4.65048034,3390.8,3390.7,0.72724]
[1735450476410,4.94590034,3390.9,3390.8,0.29543]
[1735450477706,4.65048034,3390.9,3390.8,0.29543]
[1735450478906,3.2078,3391.2,3391.1,0.2954]
[1735450479505,3.2078,3391.2,3391.1,1.1845]
[1735450480609,3.2078,3391.2,3391.1,1.65]
[1735450483006,0.29538,3391.4,3391.3,0.29538]
[1735450483507,0.29539,3391.3,3391.2,0.29538]
[1735450485504,3.2078,3391.4,3391.1,0.8891]
[1735450485705,3.50318,3391.4,3391.3,0.29538]
[1735450486601,3.50318,3391.4,3391.1,0.7174]
[1735450486602,0.29539,3391.2,3391.1,0.7174]
[1735450486813,0.29541,3391.1,3391.0,0.2954]
[1735450487008,0.71811,3391.1,3391.0,0.2954]
[1735450487215,0.4227,3391.1,3391.0,0.2954]
[1735450488309,0.7181,3391.1,3391.0,0.2954]
[1735450491421,0.29542,3391.0,3390.9,0.29541]
[1735450491613,0.29542,3391.0,3390.9,0.74831]
[1735450491814,0.4227,3391.1,3390.8,0.4312]
[1735450492116,0.29542,3390.9,3390.8,0.72662]
[1735450492515,0.29542,3391.0,3390.9,0.29541]
[1735450494416,0.29543,3390.9,3390.8,0.29542]
[1735450495723,0.29543,3390.8,3390.7,0.29543]
[1735450495925,1.19123,3390.8,3390.7,0.29543]
[1735450497119,0.29544,3390.7,3390.6,0.29544]
[1735450497324,0.29544,3390.6,3390.5,3.2078]
[1735450497622,0.75774,3390.6,3390.5,3.2078]
[1735450500016,0.75774,3390.6,3390.4,0.29546]
[1735450500017,0.4623,3390.6,3390.4,0.29546]
[1735450500223,0.4623,3390.6,3390.2,1.9686919]
[1735450500516,0.75775,3390.6,3390.5,0.29545]
[1735450502124,0.8958,3390.8,3390.7,0.29544]
[1735450502325,7.85828034,3391.0,3390.9,0.29542]
[1735450503025,3.2078,3391.0,3390.9,0.29542]
[1735450506021,3.50321,3391.0,3390.9,0.29542]
[1735450506216,3.2078,3391.0,3390.9,0.29542]
[1735450510031,3.50321,3391.0,3390.9,0.29542]
[1735450511029,3.2078,3391.0,3390.9,0.29542]
[1735450511630,0.75861,3391.1,3391.0,0.29541]
[1735450514125,0.29542,3391.0,3390.9,0.29541]
[1735450514627,0.73422,3391.0,3390.9,0.29541]
[1735450516442,0.7586,3391.1,3391.0,0.29541]
[1735450518246,0.2954,3391.1,3391.0,0.29541]
[1735450524248,0.29542,3391.0,3390.9,0.29541]
[1735450524949,0.29541,3391.1,3391.0,0.2954]
[1735450525246,4.94588034,3391.2,3391.1,0.2954]
[1735450525445,4.65048034,3391.2,3391.1,0.2954]
[1735450525748,4.94587034,3391.2,3391.1,0.2954]
[1735450525937,4.94587034,3391.2,3391.1,0.7515]
[1735450527043,4.65048034,3391.2,3391.1,0.7515]
[1735450527638,4.65048034,3391.2,3391.1,1.2127]
[1735450529150,3.2078,3391.3,3391.1,1.2127]
[1735450529151,3.2078,3391.3,3391.1,5.55662899]
[1735450529352,3.2078,3391.3,3391.2,1.7701819]
[1735450530945,4.65048034,3391.5,3391.2,1.4747919]
[1735450531152,3.2078,3391.3,3391.2,1.7701819]
[1735450533550,4.65048034,3391.6,3391.2,1.4747919]
[1735450533756,4.65048034,3391.6,3391.5,1.3415619]
[1735450534647,5.40083034,3391.7,3391.6,0.29536]
[1735450536360,0.29536,3391.6,3391.5,0.29536]
[1735450548464,5.10548034,3391.7,3391.3,1.0461919]
[1735450548659,5.40083034,3391.7,3391.6,0.29536]
[1735450549060,5.40083034,3391.7,3391.6,0.73666]
[1735450551867,5.40083034,3391.7,3391.6,0.4413]
[1735450552067,5.40083034,3391.7,3391.6,0.73666]
[1735450552269,5.40083034,3391.7,3391.6,0.29536]
[1735450552463,5.10548034,3391.7,3391.2,4.63932899]
[1735450552668,4.2539919,3391.4,3391.0,6.97027837]
[1735450552864,1.3415919,3391.1,3391.0,1.53898315]
[1735450553060,0.29542,3390.9,3390.8,7.47413561]
[1735450553258,4.5494119,3390.9,3390.8,7.47413561]
[1735450553565,14.1569919,3390.9,3390.6,2.71822286]
[1735450553761,1.3416319,3390.7,3390.6,1.22728287]
[1735450553963,1.3416319,3390.7,3390.6,1.05228287]
[1735450554164,6.3416319,3390.7,3390.6,1.05228287]
[1735450554362,6.3416319,3390.7,3390.6,0.44695287]
[1735450554566,6.0461919,3390.7,3389.8,18.48607122]
[1735450554764,6.0461919,3390.7,3389.6,1.4800919]
[1735450554765,0.29552,3389.7,3389.6,1.4800919]
[1735450556369,5.37752274,3389.7,3389.6,1.4800919]
[1735450557769,0.73898313,3389.7,3389.6,1.4800919]
[1735450560677,4.21172939,3389.7,3389.6,1.4800919]
[1735450563879,0.29552,3389.7,3389.6,1.4800919]
[1735450565777,0.29552,3389.7,3389.6,0.4339]
[1735450572178,3.2078,3389.8,3389.6,1.4800919]
[1735450572381,3.2078,3389.8,3389.7,0.29552]
[1735450573187,3.50331,3389.8,3389.7,0.29552]
[1735450575280,3.50331,3389.8,3389.7,0.73052]
[1735450578688,3.2078,3390.2,3389.7,0.435]
[1735450578985,0.29549,3390.1,3390.0,1.0461919]
[1735450579176,0.29549,3390.1,3390.0,1.4881919]
[1735450581178,3.2078,3390.2,3390.0,1.4881919]
[1735450581377,3.2078,3390.2,3390.1,1.7960819]
[1735450581583,2.60789543,3390.4,3390.1,1.5005919]
[1735450581789,2.31242543,3390.4,3390.3,1.3416619]
[1735450583487,3.50325,3390.6,3390.5,0.29545]
[1735450583691,3.50325,3390.6,3390.5,1.3416419]
[1735450584184,3.2078,3390.6,3390.5,1.3416419]
[1735450584581,0.29544,3390.7,3390.5,1.0461919]
[1735450584778,0.29544,3390.7,3390.6,0.72034]
[1735450585290,0.29543,3390.8,3390.7,0.29543]
[1735450585487,0.29543,3390.8,3390.7,1.7900219]
[1735450587580,2.31242543,3391.0,3390.7,1.4945919]
[1735450587789,0.29542,3390.9,3390.8,0.29542]
[1735450588389,2.60784543,3391.0,3390.8,0.29543]
[1735450588590,2.60784543,3391.0,3390.7,1.4945919]
[1735450588888,2.60784543,3391.0,3390.8,0.29543]
[1735450589189,3.76815626,3391.1,3391.0,0.29541]
[1735450590390,2.60737789,3391.1,3391.0,0.29541]
[1735450591090,2.31196789,3391.1,3390.9,1.0461919]
[1735450591284,0.29541,3391.0,3390.9,1.3416019]
[1735450594293,0.2954,3391.1,3391.0,0.29541]
[1735450594594,2.60871511,3391.1,3391.0,1.3416019]
[1735450596388,2.60871511,3391.1,3391.0,0.29541]
[1735450597190,0.2954,3391.1,3391.0,0.29541]
[1735450597389,0.29542,3391.0,3390.9,0.29541]
[1735450598794,2.61017646,3391.0,3390.9,0.29541]
[1735450602002,2.31475646,3391.0,3390.9,0.29541]
[1735450603595,2.31475646,3391.0,3390.7,0.4484]
[1735450603797,0.29549,3390.2,3390.1,3.2078]
[1735450604505,0.75379,3390.2,3390.1,3.2078]
[1735450605502,1.1972001,3390.2,3390.1,3.2078]
[1735450606803,4.67030022,3390.2,3390.1,3.2078]
[1735450608105,1.1972001,3390.2,3390.1,3.2078]
[1735450608508,1.1972001,3390.2,3389.5,3.96624]
[1735450608509,0.29553,3389.7,3389.5,3.96624]
[1735450608709,0.29553,3389.7,3389.6,1.0461919]
[1735450609107,4.4050001,3390.2,3389.5,3.6707]
[1735450609304,0.73873,3390.1,3389.6,1.0461919]
[1735450609498,0.29552,3389.7,3389.6,1.0461919]
[1735450609708,2.61150161,3389.7,3389.6,1.0461919]
[1735450611008,0.29552,3389.7,3389.6,1.0461919]
[1735450611717,0.29552,3389.7,3389.6,1.3417219]
[1735450612004,3.47397242,3389.8,3389.7,0.29552]
[1735450612207,3.47397242,3389.8,3389.7,0.72532]
[1735450612408,3.47397242,3389.8,3389.7,1.15312]
[1735450613809,2.31600736,3390.0,3389.7,0.8576]
[1735450614112,2.61150736,3390.0,3389.9,1.0461919]
[1735450614512,2.31600736,3390.0,3389.9,1.0461919]
[1735450614710,2.31600736,3390.0,3389.9,1.3417019]
[1735450615514,2.31600736,3390.0,3389.9,4.5495019]
[1735450616314,2.31600736,3390.1,3389.9,4.2539919]
[1735450616512,2.31600736,3390.1,3390.0,0.2955]
[1735450618016,2.31600736,3390.1,3390.0,3.5033]
[1735450619711,2.31600736,3390.1,3390.0,0.2955]
[1735450620018,2.31600736,3390.1,3390.0,3.5033]
[1735450621315,3.9173347,3390.2,3390.1,0.29549]
[1735450621517,4.2128147,3390.2,3390.1,1.7887819]
[1735450622322,4.2128147,3390.2,3390.1,1.4932919]
[1735450623215,4.2128147,3390.2,3390.0,3.2078]
[1735450623216,0.29549,3390.1,3390.0,3.2078]
[1735450623418,0.76009,3390.1,3390.0,3.2078]
[1735450624317,5.84199189,3390.1,3390.0,3.2078]
[1735450625625,1.20345228,3390.1,3390.0,3.2078]
[1735450626821,0.76009,3390.1,3390.0,3.2078]
[1735450628017,5.83905059,3390.1,3390.0,3.2078]
[1735450630325,5.07896059,3390.1,3390.0,3.5033]
[1735450631116,0.44336228,3390.1,3390.0,3.5033]
[1735450632327,0.73885228,3390.1,3390.0,3.5033]
[1735450632723,4.21505916,3390.1,3390.0,3.5033]
[1735450633519,3.91956916,3390.1,3390.0,3.5033]
[1735450634024,3.91956916,3390.1,3390.0,4.5494919]
[1735450634225,2.77500688,3390.1,3390.0,4.5494919]
[1735450635528,2.31732938,3390.4,3390.3,0.29547]
[1735450636222,2.31732938,3390.4,3390.3,0.75127]
[1735450636427,2.31732938,3390.4,3390.3,3.13051022]
[1735450639127,2.31732938,3390.6,3390.5,0.29545]
[1735450640322,0.29544,3390.7,3390.6,0.29544]
[1735450641532,0.73874952,3390.7,3390.6,0.29544]
[1735450643230,0.29544,3390.6,3390.5,3.50325]
[1735450643431,0.29544,3390.6,3390.5,3.2078]
[1735450643822,0.73324,3390.6,3390.5,3.2078]
[1735450644225,0.73874952,3390.6,3390.5,3.2078]
[1735450648822,5.37434783,3390.6,3390.5,3.2078]
[1735450650231,0.73874952,3390.6,3390.5,3.2078]
[1735450651138,0.29544,3390.6,3390.5,3.2078]
[1735450651336,6.09361452,3390.6,3390.5,3.2078]
[1735450652331,6.09361452,3390.6,3390.4,0.29546]
[1735450652332,0.29545,3390.5,3390.4,0.29546]
[1735450653931,5.37975636,3390.5,3390.4,0.29546]
[1735450658537,5.37975636,3390.5,3390.4,1.34144646]
[1735450658741,5.37975636,3390.5,3390.4,1.76814646]
[1735450659129,0.73875952,3390.5,3390.4,1.76814646]
[1735450660537,0.29545,3390.5,3390.4,1.76814646]
[1735450660737,5.79817452,3390.6,3390.4,1.47268646]
[1735450660933,5.79817452,3390.6,3390.5,0.74755]
[1735450660934,6.09362452,3390.6,3390.5,0.74755]
[1735450661744,5.79817452,3390.6,3390.5,0.74755]
[1735450662138,0.44330952,3390.6,3390.5,0.74755]
[1735450663846,4.64277647,3390.6,3390.5,0.74755]
[1735450664043,4.64277647,3390.6,3390.5,3.95535]
[1735450664945,4.93821647,3390.6,3390.5,3.95535]
[1735450666348,0.73874952,3390.6,3390.5,3.95535]
[1735450666646,0.73874952,3390.6,3390.5,3.2078]
[1735450666948,1.16934952,3390.6,3390.5,3.2078]
[1735450667850,0.29546,3390.4,3390.3,0.73997]
[1735450669348,4.81160792,3390.4,3390.3,0.73997]
[1735450669846,5.27080792,3390.4,3390.3,0.73997]
[1735450670348,5.27080792,3390.4,3390.3,0.4445]
[1735450672346,11.0752384,3390.4,3390.3,0.4445]
[1735450672747,11.0752384,3390.4,3390.3,0.73997]
[1735450673344,10.7797784,3390.4,3390.3,0.73997]
[1735450673650,10.7797784,3390.4,3390.3,3.94777]
[1735450673849,10.3205784,3390.4,3390.3,3.94777]
[1735450674947,10.3205784,3390.5,3390.4,0.29546]
[1735450675148,10.3205784,3390.5,3390.4,1.76764646]
[1735450675350,10.3205784,3390.5,3390.4,2.21734646]
[1735450678758,4.51614792,3390.5,3390.4,2.21734646]
[1735450680058,0.29545,3390.6,3390.4,1.92188646]
[1735450680259,0.29545,3390.6,3390.5,0.29545]
[1735450681553,4.51614792,3390.6,3390.4,1.92188646]
[1735450681752,0.29545,3390.5,3390.4,2.21734646]
[1735450683155,4.51614792,3390.5,3390.4,2.21734646]
[1735450689163,5.81322904,3390.6,3390.5,0.29545]
[1735450689460,5.81322904,3390.6,3390.5,1.34143646]
[1735450690763,5.81322904,3390.6,3390.5,7.38742292]
[1735450690764,1.58962904,3390.6,3390.5,7.38742292]
[1735450691162,1.58962904,3390.7,3390.6,0.29544]
[1735450691360,1.58962904,3390.7,3390.6,2.38741292]
[1735450692568,2.3234137,3390.8,3390.7,0.29544]
[1735450692767,2.3234137,3390.8,3390.7,5.59521292]
[1735450693461,2.3234137,3390.8,3390.7,10.23385454]
[1735450694367,2.3234137,3390.8,3390.7,9.18786808]
[1735450694761,2.3234137,3390.9,3390.8,0.29543]
[1735450694965,2.3234137,3390.9,3390.8,0.74923]
[1735450696059,2.3234137,3391.0,3390.8,0.4538]
[1735450696260,2.3234137,3391.0,3390.9,1.76390646]
[1735450697168,3.48305281,3391.1,3391.0,0.29541]
[1735450698268,3.48305281,3391.1,3391.0,1.34139646]
[1735450698968,3.48305281,3391.1,3391.0,0.29541]
[1735450699368,3.48305281,3391.1,3391.0,2.38738292]
[1735450700263,2.31983197,3391.1,3391.0,2.38738292]
[1735450701264,2.31983197,3391.1,3391.0,5.59518292]
[1735450701464,2.31983197,3391.2,3391.0,5.29977292]
[1735450701667,2.31983197,3391.2,3391.1,0.2954]
[1735450703064,3.48305281,3391.3,3391.2,0.29539]
[1735450703269,3.48305281,3391.3,3391.2,1.34137646]
[1735450704568,3.90535281,3391.4,3391.2,1.04598646]
[1735450704773,3.90535281,3391.4,3391.3,0.29538]
[1735450713470,3.90535281,3391.4,3391.3,1.34136646]
[1735450721280,0.4223,3391.4,3391.3,1.34136646]
[1735450722477,0.29539,3391.2,3391.1,3.5032]
[1735450722680,0.73259,3391.3,3391.2,0.29539]
[1735450722880,0.29539,3391.3,3391.2,0.29539]
[1735450723186,0.4223,3391.4,3391.1,4.25378646]
[1735450723376,0.71768,3391.4,3391.3,1.34136646]
[1735450723572,5.3645074,3391.4,3391.3,1.34136646]
[1735450724978,0.71768,3391.4,3391.3,1.34136646]
[1735450726381,0.4223,3391.4,3391.3,1.34136646]
[1735450726580,5.3644974,3391.4,3391.3,1.34136646]
[1735450730175,5.0691274,3391.4,3391.3,1.34136646]
[1735450730981,0.4223,3391.4,3391.3,1.34136646]
[1735450734689,4.38946459,3391.4,3391.3,1.34136646]
[1735450736089,10.18372242,3391.4,3391.3,1.34136646]
[1735450737084,4.38946459,3391.4,3391.3,1.34136646]
[1735450737991,0.4223,3391.4,3391.3,1.34136646]
[1735450739693,10.20375907,3391.4,3391.3,1.34136646]
[1735450741986,10.20375907,3391.4,3391.3,1.76816646]
[1735450744993,10.20375907,3391.4,3391.3,0.72218]
[1735450745398,10.20375907,3391.4,3391.3,1.76816646]
[1735450746592,4.38946459,3391.4,3391.3,1.76816646]
[1735450748197,0.4223,3391.4,3391.3,1.76816646]
[1735450749703,4.38946459,3391.4,3391.3,1.76816646]
[1735450751807,10.20351109,3391.4,3391.3,1.76816646]
[1735450754104,10.20351109,3391.4,3391.3,4.97596646]
[1735450761304,4.38946459,3391.4,3391.3,4.97596646]
[1735450762610,10.20351109,3391.4,3391.3,4.97596646]
[1735450765917,5.07266331,3391.4,3391.3,9.61460808]
[1735450766815,5.07266331,3391.4,3391.3,6.40680808]
[1735450767016,5.07266331,3391.4,3391.3,9.61460808]
[1735450768319,5.07266331,3391.4,3391.3,8.56862162]
[1735450768521,5.07266331,3391.4,3391.3,9.61460808]
[1735450768914,0.4223,3391.4,3391.3,4.97596646]
[1735450769722,0.4223,3391.4,3391.3,4.54916646]
[1735450771517,10.20778399,3391.4,3391.3,4.54916646]
[1735450776818,10.20778399,3391.4,3391.3,3.50318]
[1735450777221,10.62968399,3391.4,3391.3,3.50318]
[1735450777617,4.81656782,3391.4,3391.3,3.50318]
[1735450778117,5.11193782,3391.4,3391.3,2.507]
[1735450778323,0.29539,3391.2,3391.1,4.63864162]
[1735450778826,0.4577,3391.3,3391.0,5.68462808]
[1735450779026,0.2954,3391.1,3391.0,5.68462808]
[1735450779323,0.2954,3391.1,3391.0,4.63864162]
[1735450780121,0.2954,3391.1,3391.0,5.68462808]
[1735450780527,10.62472915,3391.1,3391.0,1.04598646]
[1735450781125,10.62472915,3391.1,3391.0,1.34139646]
[1735450782023,4.26776782,3391.1,3391.0,1.34139646]
[1735450783228,0.2954,3391.1,3391.0,1.34139646]
[1735450783629,0.2954,3391.1,3391.0,1.04598646]
[1735450783931,0.2954,3391.1,3391.0,1.34139646]
[1735450784328,4.26776782,3391.1,3391.0,1.34139646]
[1735450784631,4.26776782,3391.1,3391.0,1.04598646]
[1735450785926,3.97236782,3391.1,3390.8,1.04598646]
[1735450786130,0.29542,3390.9,3390.8,1.04598646]
[1735450786631,0.72662,3390.9,3390.8,1.04598646]
[1735450787024,0.4261,3391.0,3390.8,1.04598646]
[1735450787227,0.72151,3391.0,3390.9,0.29542]
[1735450787730,0.4261,3391.0,3390.9,0.29542]
[1735450788635,10.19544639,3391.0,3390.9,0.29542]
[1735450789023,10.19544639,3391.0,3390.9,0.72062]
[1735450789832,10.49085639,3391.0,3390.9,0.72062]
[1735450790032,4.68735403,3391.0,3390.9,0.72062]
[1735450791235,0.72151,3391.0,3390.9,0.72062]
[1735450795337,0.72151,3391.0,3390.9,1.16982]
[1735450800940,0.72151,3391.0,3390.9,0.8744]
[1735450801142,5.36173539,3391.0,3390.9,1.16982]
[1735450801443,5.36173539,3391.0,3390.9,0.8744]
[1735450801648,5.36173539,3391.0,3390.9,0.4492]
[1735450802441,0.72151,3391.0,3390.9,0.4492]
[1735450803036,0.72151,3391.0,3390.5,1.34143646]
[1735450803037,0.29545,3390.6,3390.5,1.34143646]
[1735450804744,4.93580987,3390.6,3390.5,1.34143646]
[1735450805638,5.40180987,3390.6,3390.5,1.34143646]
[1735450808545,5.10635987,3390.6,3390.5,1.34143646]
[1735450809948,0.466,3390.6,3390.5,1.34143646]
[1735450811348,4.93579987,3390.7,3390.6,0.29544]
[1735450812747,0.29544,3390.6,3390.5,1.34143646]
[1735450813145,0.29544,3390.6,3390.5,1.04598646]
[1735450813342,0.73374,3390.6,3390.5,1.04598646]
[1735450814639,5.37409987,3390.6,3390.5,1.04598646]
[1735450817353,5.07865987,3390.6,3390.2,3.2078]
[1735450817555,0.29546,3390.4,3390.3,0.29547]
[1735450817749,0.29546,3390.4,3390.3,1.34145646]
[1735450817945,0.73375,3390.6,3390.5,0.29545]
[1735450818146,0.73375,3390.6,3390.5,1.34143646]
[1735450818555,0.73375,3390.6,3390.5,1.77603646]
[1735450819947,0.73375,3390.6,3390.5,1.48058646]
[1735450821756,10.50435475,3390.6,3390.5,1.48058646]
[1735450822355,10.50435475,3390.6,3390.5,1.77603646]
[1735450824259,4.70085239,3390.6,3390.5,1.48058646]
[1735450824460,4.40540239,3390.6,3390.5,1.77603646]
[1735450824859,3.96710239,3390.6,3390.5,1.77603646]
[1735450825559,0.29543,3390.8,3390.6,0.29544]
[1735450825750,0.29543,3390.8,3390.7,0.4299]
[1735450827164,4.26253239,3390.8,3390.7,0.4299]
[1735450827866,3.96710239,3390.8,3390.7,1.77132646]
[1735450828660,4.26253239,3390.8,3390.7,1.47588646]
[1735450828960,4.26253239,3390.8,3390.7,1.77132646]
[1735450829360,4.26253239,3390.8,3390.7,1.47588646]
[1735450829860,4.26253239,3390.8,3390.7,0.4299]
[1735450830170,0.29547,3390.3,3390.2,5.68462808]
[1735450830764,0.29547,3390.3,3390.2,4.63864162]
[1735450830962,0.29547,3390.3,3390.2,5.68462808]
[1735450831466,10.07278702,3390.3,3390.2,1.04598646]
[1735450832963,9.77731702,3390.3,3390.2,1.34146646]
[1735450834367,3.96710239,3390.3,3390.2,1.34146646]
[1735450835564,4.64675364,3390.3,3390.2,1.34146646]
[1735450836970,5.81021463,3390.4,3390.3,0.29547]
[1735450837971,5.81021463,3390.4,3390.3,1.34145646]
[1735450838868,9.77978365,3390.4,3390.3,1.34145646]
[1735450845383,3.96956902,3390.4,3390.3,1.34145646]
[1735450846372,0.75575,3390.6,3390.4,0.29546]
[1735450846577,0.29546,3390.5,3390.3,1.34144646]
[1735450846779,0.29546,3390.5,3390.4,0.29546]
[1735450847175,0.29548,3390.2,3390.0,3.6567]
[1735450847379,0.74359,3390.1,3390.0,3.9522]
[1735450847584,0.4481,3390.1,3390.0,3.9522]
[1735450849881,0.4481,3390.1,3390.0,4.99818646]